fUSD/lending_fUSD_20240518
["ID","MTS","AMOUNT","RATE_DAILY","PERIOD"]
[327426935,1716071440296,-3194.35,0.00024396,2]
[327426936,1716071440306,-1060.0,0.00024659,2]
[327426937,1716071440317,-8254602.2072279,0.00025,2]
[327426938,1716071440327,-55262.38820694,0.00025,2]
[327426939,1716071440337,-1000.0,0.00025,5]
[327426940,1716071440347,-955.19985806,0.00025,2]
[327426941,1716071440357,-854.79978887,0.00025,2]
[327426942,1716071440367,-1228.85839079,0.00025,2]
[327426943,1716071440380,-750.0,0.00025,2]
[327426944,1716071440390,-151.0,0.00025,7]
[327426945,1716071440400,-151.0,0.00025,7]
[327426946,1716071440411,-151.0,0.00025,7]
[327426947,1716071440422,-151.0,0.00025,7]
[327426948,1716071440432,-151.0,0.00025,7]
[327426949,1716071440443,-151.0,0.00025,7]
[327426950,1716071440455,-151.0,0.00025,7]
[327426951,1716071440465,-153.38907,0.00025,7]
[327426952,1716071440475,-151.0,0.00025,7]
[327426953,1716071440485,-151.0,0.00025,7]
[327426954,1716071440495,-151.0,0.00025,7]
[327426955,1716071440505,-151.0,0.00025,7]
[327426956,1716071440515,-151.0,0.00025,7]
[327426957,1716071440525,-151.0,0.00025,7]
[327426958,1716071440535,-151.0,0.00025,7]
[327426959,1716071440544,-281.71063,0.00025,7]
[327426960,1716071440554,-281.71063,0.00025,7]
[327426961,1716071440564,-299.587713,0.00025,7]
[327426962,1716071440573,-299.587713,0.00025,7]
[327426963,1716071440583,-219.669158,0.00025,7]
[327426964,1716071440593,-219.669158,0.00025,7]
[327426965,1716071440602,-151.0,0.00025,7]
[327426966,1716071440612,-151.0,0.00025,7]
[327426967,1716071440622,-151.0,0.00025,7]
[327426968,1716071440632,-158.181733,0.00025,7]
[327426969,1716071440642,-151.0,0.00025,7]
[327426970,1716071440651,-404.629676,0.00025,7]
[327426971,1716071440661,-158.181733,0.00025,7]
[327426972,1716071440671,-151.0,0.00025,7]
[327426973,1716071440681,-404.629676,0.00025,7]
[327426974,1716071440690,-151.0,0.00025,7]
[327426975,1716071440700,-978.731849,0.00025,7]
[327426976,1716071440710,-978.731849,0.00025,7]
[327426977,1716071440721,-151.0,0.00025,7]
[327426978,1716071440730,-533.776878,0.00025,7]
[327426979,1716071440740,-151.0,0.00025,7]
[327426980,1716071440749,-173.562306,0.00025,7]
[327426981,1716071440759,-533.776878,0.00025,7]
[327426982,1716071440769,-151.0,0.00025,7]
[327426983,1716071440778,-173.562306,0.00025,7]
[327426984,1716071440787,-151.0,0.00025,7]
[327426985,1716071440797,-298.954234,0.00025,7]
[327426986,1716071440806,-151.0,0.00025,7]
[327426987,1716071440816,-151.0,0.00025,7]
[327426988,1716071440825,-479.144625,0.00025,7]
[327426989,1716071440834,-398.077809,0.00025,7]
[327426990,1716071440844,-151.0,0.00025,7]
[327426991,1716071440853,-479.144625,0.00025,7]
[327426992,1716071440863,-151.0,0.00025,7]
[327426993,1716071440873,-398.077809,0.00025,7]
[327426994,1716071440882,-151.0,0.00025,7]
[327426995,1716071440891,-151.620958,0.00025,7]
[327426996,1716071440900,-151.0,0.00025,7]
[327426997,1716071440910,-151.0,0.00025,7]
[327426998,1716071440919,-151.0,0.00025,7]
[327426999,1716071440929,-151.0,0.00025,7]
[327427000,1716071440938,-151.0,0.00025,7]
[327427001,1716071440948,-980.133193,0.00025,7]
[327427002,1716071440958,-980.133193,0.00025,7]
[327427003,1716071440967,-151.0,0.00025,7]
[327427004,1716071440976,-151.0,0.00025,7]
[327427005,1716071440986,-492.963017,0.00025,7]
[327427006,1716071440995,-492.963017,0.00025,7]
[327427007,1716071441004,-151.0,0.00025,7]
[327427008,1716071441014,-151.0,0.00025,7]
[327427009,1716071441023,-151.810913,0.00025,7]
[327427010,1716071441032,-370.235241,0.00025,7]
[327427011,1716071441042,-151.0,0.00025,7]
[327427012,1716071441051,-370.235241,0.00025,7]
[327427013,1716071441061,-151.0,0.00025,7]
[327427014,1716071441070,-222.283765,0.00025,7]
[327427015,1716071441080,-151.0,0.00025,7]
[327427016,1716071441090,-222.283765,0.00025,7]
[327427017,1716071441099,-151.0,0.00025,7]
[327427018,1716071441109,-151.0,0.00025,7]
[327427019,1716071441119,-151.0,0.00025,7]
[327427020,1716071441129,-151.0,0.00025,7]
[327427021,1716071441139,-236.884873,0.00025,7]
[327427022,1716071441148,-151.0,0.00025,7]
[327427023,1716071441159,-151.0,0.00025,7]
[327427024,1716071441169,-151.0,0.00025,7]
[327427025,1716071441178,-151.0,0.00025,7]
[327427026,1716071441187,-151.0,0.00025,7]
[327427027,1716071441199,-151.0,0.00025,7]
[327427028,1716071441208,-151.0,0.00025,7]
[327427029,1716071441217,-151.0,0.00025,7]
[327427030,1716071441227,-151.0,0.00025,7]
[327427031,1716071441236,-151.0,0.00025,7]
[327427032,1716071441246,-151.0,0.00025,7]
[327427033,1716071441255,-151.0,0.00025,7]
[327427034,1716071441264,-151.0,0.00025,7]
[327427035,1716071441273,-151.0,0.00025,7]
[327427036,1716071441283,-151.81978,0.00025,7]
[327427037,1716071441292,-151.0,0.00025,7]
[327427038,1716071441301,-1700.309601,0.00025,7]
[327427039,1716071441311,-1700.309601,0.00025,7]
[327427040,1716071441320,-247.007737,0.00025,7]
[327427041,1716071441329,-247.007737,0.00025,7]
[327427042,1716071441339,-151.0,0.00025,7]
[327427043,1716071441351,-153.145064,0.00025,7]
[327427044,1716071441361,-151.0,0.00025,7]
[327427045,1716071441373,-297.413408,0.00025,7]
[327427046,1716071441383,-297.413408,0.00025,7]
[327427047,1716071441392,-420.939383,0.00025,7]
[327427048,1716071441402,-420.939383,0.00025,7]
[327427049,1716071441413,-151.0,0.00025,7]
[327427050,1716071441423,-151.0,0.00025,7]
[327427051,1716071441432,-3000.0,0.00025,2]
[327427052,1716071441442,-473.483453,0.00025,7]
[327427053,1716071441453,-648.919543,0.00025,7]
[327427054,1716071441463,-151.0,0.00025,7]
[327427055,1716071441473,-473.483453,0.00025,7]
[327427056,1716071441482,-648.919543,0.00025,7]
[327427057,1716071441491,-390.262367,0.00025,7]
[327427058,1716071441501,-390.262367,0.00025,7]
[327427059,1716071441510,-340.0,0.00025,15]
[327427060,1716071441519,-188.496108,0.00025,7]
[327427061,1716071441529,-188.496108,0.00025,7]
[327427062,1716071441540,-151.0,0.00025,7]
[327427063,1716071441550,-151.0,0.00025,7]
[327427064,1716071441560,-150.0,0.00025001,2]
[327427065,1716071441570,-151.0,0.00025002,7]
[327427066,1716071441578,-151.0,0.00025002,7]
[327427067,1716071441587,-151.0,0.00025002,7]
[327427068,1716071441596,-151.0,0.00025002,7]
[327427069,1716071441605,-151.0,0.00025002,7]
[327427070,1716071441615,-151.0,0.00025002,7]
[327427071,1716071441624,-151.0,0.00025002,7]
[327427072,1716071441634,-151.0,0.00025002,7]
[327427073,1716071441643,-151.0,0.00025002,7]
[327427074,1716071441653,-151.0,0.00025002,7]
[327427075,1716071441662,-151.0,0.00025002,7]
[327427076,1716071441671,-153.38907,0.00025002,7]
[327427077,1716071441680,-151.0,0.00025002,7]
[327427078,1716071441690,-151.0,0.00025002,7]
[327427079,1716071441699,-151.0,0.00025002,7]
[327427080,1716071441709,-151.0,0.00025002,7]
[327427081,1716071441718,-151.0,0.00025002,7]
[327427082,1716071441727,-151.0,0.00025002,7]
[327427083,1716071441736,-151.0,0.00025002,7]
[327427084,1716071441745,-281.71063,0.00025002,7]
[327427085,1716071441754,-281.71063,0.00025002,7]
[327427086,1716071441763,-299.587713,0.00025002,7]
[327427087,1716071441772,-299.587713,0.00025002,7]
[327427088,1716071441782,-219.669158,0.00025002,7]
[327427089,1716071441791,-219.669158,0.00025002,7]
[327427090,1716071441800,-151.0,0.00025002,7]
[327427091,1716071441809,-151.0,0.00025002,7]
[327427092,1716071441818,-151.0,0.00025002,7]
[327427093,1716071441827,-158.181733,0.00025002,7]
[327427094,1716071441836,-151.0,0.00025002,7]
[327427095,1716071441846,-404.629676,0.00025002,7]
[327427096,1716071441854,-158.181733,0.00025002,7]
[327427097,1716071441864,-151.0,0.00025002,7]
[327427098,1716071441873,-404.629676,0.00025002,7]
[327427099,1716071441882,-151.0,0.00025002,7]
[327427100,1716071441891,-978.731849,0.00025002,7]
[327427101,1716071441900,-978.731849,0.00025002,7]
[327427102,1716071441909,-151.0,0.00025002,7]
[327427103,1716071441919,-533.776878,0.00025002,7]
[327427104,1716071441928,-151.0,0.00025002,7]
[327427105,1716071441938,-173.562306,0.00025002,7]
[327427106,1716071441947,-533.776878,0.00025002,7]
[327427107,1716071441956,-151.0,0.00025002,7]
[327427108,1716071441966,-173.562306,0.00025002,7]
[327427109,1716071441975,-151.0,0.00025002,7]
[327427110,1716071441986,-151.0,0.00025002,7]
[327427111,1716071441996,-151.0,0.00025002,7]
[327427112,1716071442005,-479.144625,0.00025002,7]
[327427113,1716071442015,-398.077809,0.00025002,7]
[327427114,1716071442024,-151.0,0.00025002,7]
[327427115,1716071442033,-479.144625,0.00025002,7]
[327427116,1716071442042,-151.0,0.00025002,7]
[327427117,1716071442051,-398.077809,0.00025002,7]
[327427118,1716071442060,-151.0,0.00025002,7]
[327427119,1716071442070,-151.0,0.00025002,7]
[327427120,1716071442080,-151.0,0.00025002,7]
[327427121,1716071442089,-151.0,0.00025002,7]
[327427122,1716071442100,-151.0,0.00025002,7]
[327427123,1716071442110,-151.0,0.00025002,7]
[327427124,1716071442121,-980.133193,0.00025002,7]
[327427125,1716071442132,-980.133193,0.00025002,7]
[327427126,1716071442142,-151.0,0.00025002,7]
[327427127,1716071442151,-151.0,0.00025002,7]
[327427128,1716071442160,-492.963017,0.00025002,7]
[327427129,1716071442169,-492.963017,0.00025002,7]
[327427130,1716071442179,-153.580035,0.00025002,7]
[327427131,1716071442188,-151.0,0.00025002,7]
[327427132,1716071442198,-6497.5970213,0.00025002,2]
[327427133,1716071442208,-370.235241,0.00025002,7]
[327427134,1716071442217,-151.0,0.00025002,7]
[327427135,1716071442226,-370.235241,0.00025002,7]
[327427136,1716071442236,-151.0,0.00025002,7]
[327427137,1716071442245,-222.283765,0.00025002,7]
[327427138,1716071442254,-151.0,0.00025002,7]
[327427139,1716071442263,-222.283765,0.00025002,7]
[327427140,1716071442272,-151.0,0.00025002,7]
[327427141,1716071442282,-762.0905433,0.00025002,2]
[327427142,1716071442291,-151.0,0.00025002,7]
[327427143,1716071442301,-151.0,0.00025002,7]
[327427144,1716071442310,-151.0,0.00025002,7]
[327427145,1716071442319,-151.0,0.00025002,7]
[327427146,1716071442328,-151.0,0.00025002,7]
[327427147,1716071442338,-151.0,0.00025002,7]
[327427148,1716071442347,-513.45367548,0.00025002,2]
[327427149,1716071442357,-151.0,0.00025002,7]
[327427150,1716071442366,-151.0,0.00025002,7]
[327427151,1716071442380,-151.0,0.00025002,7]
[327427152,1716071442389,-151.0,0.00025002,7]
[327427153,1716071442398,-248.72359787,0.00025002,7]
[327427154,1716071442407,-151.0,0.00025002,7]
[327427155,1716071442418,-151.0,0.00025002,7]
[327427156,1716071442428,-297.3584,0.00025002,7]
[327427157,1716071442438,-265.357963,0.00025002,7]
[327427158,1716071442449,-151.0,0.00025002,7]
[327427159,1716071442460,-15323.3174081,0.00025002,2]
[327427160,1716071442470,-151.0,0.00025002,7]
[327427161,1716071442479,-151.0,0.00025002,7]
[327427162,1716071442489,-55345.01905879,0.00025002,2]
[327427163,1716071442520,-40068.58390429,0.00025002,2]
[327427193,1716071443104,-3109.86,0.0002389,2]
[327427201,1716071443175,-1234.0,0.0002389,2]
[327427209,1716071446211,-1500.0,0.0002389,2]
[327427210,1716071446222,-1940.811,0.0002389,2]
[327427211,1716071446298,-1535.91534395,0.0002389,2]
[327427214,1716071623999,9000.0,0.00013,2]
[327427215,1716071646206,1249.8992678,0.000118,2]
[327427216,1716071670068,150.0,0.00011667,2]
[327427217,1716071670092,150.0,0.00011667,2]
[327427218,1716071670114,150.0,0.00011667,2]
[327427219,1716071670135,150.0,0.00011667,2]
[327427220,1716071670156,150.0,0.00011667,2]
[327427221,1716071670176,150.0,0.00011667,2]
[327427222,1716071670197,134.98517873,0.00011667,2]
[327427223,1716071673189,15.01482127,0.00010959,2]
[327427224,1716071673210,150.0,0.00010959,2]
[327427225,1716071673235,37.11517873,0.00010959,2]
[327427226,1716071676194,112.88482127,0.00011666,2]
[327427227,1716071676216,82.08717476,0.00011666,2]
[327427228,1716071676601,67.91282524,0.00011666,2]
[327427229,1716071676623,150.0,0.00011666,2]
[327427230,1716071676644,150.0,0.00011666,2]
[327427231,1716071676667,78.55452435,0.00011666,2]
[327427232,1716071681789,155.0,0.00011665,2]
[327427233,1716071682380,155.0,0.00012,2]
[327427234,1716071683829,168.44,0.00010959,2]
[327427235,1716071694457,842.21,0.00010959,2]
[327427236,1716071696868,155.1812949,0.00010959,2]
[327427237,1716071698707,173.22233242,0.00010959,2]
[327427238,1716071743603,103025.92248272,0.0001118,2]
[327427239,1716071815955,279.63808439,0.00012,2]
[327427240,1716071839802,1014.93625977,0.00029,120]
[327427241,1716071848861,-302.55327352,0.00012499,2]
[327427242,1716071848879,-287.61537479,0.000125,2]
[327427243,1716071848901,-409.83135169,0.00012698,2]
[327427244,1716071850694,-155.0,0.00012499,2]
[327427245,1716071850715,-402.45265061,0.00012698,2]
[327427246,1716071850737,-442.54734939,0.00012747,2]
[327427247,1716071852183,-369.7366529,0.00012747,2]
[327427248,1716071852203,-155.0,0.00012796,2]
[327427249,1716071852224,-475.2633471,0.00012796,2]
[327427250,1716071853580,-155.0,0.00012498,2]
[327427251,1716071853600,-337.02065519,0.00012796,2]
[327427252,1716071853621,-203.3044281,0.00012798,2]
[327427253,1716071853642,-194.26468822,0.000129,2]
[327427254,1716071853662,-110.41022849,0.000129,2]
[327427255,1716071855169,-92.89419961,0.000129,2]
[327427256,1716071855187,-907.10580039,0.000129,2]
[327427257,1716071856609,-817.70738159,0.000129,2]
[327427258,1716071856630,-182.29261841,0.000129,2]
[327427259,1716071858877,-1000.0,0.000129,2]
[327427260,1716071860225,-1000.0,0.000129,2]
[327427261,1716071861815,-1000.0,0.000129,2]
[327427262,1716072131726,166.98,0.00027708,120]
[327427263,1716072366267,250.0,0.00011752,2]
[327427264,1716072430921,150.0,0.00011786,2]
[327427265,1716072439890,428.07,0.00011758,2]
[327427266,1716072460623,197.66,0.00011736,2]
[327427267,1716072480789,569.58,0.0001169,2]
[327427268,1716072523702,3395.89,0.00011685,2]
[327427269,1716072595867,804.35457658,0.0001,2]
[327427270,1716072619483,166.53,0.00011693,2]
[327427272,1716072632340,-326.67129957,0.00012055,2]
[327427273,1716072632350,-285.0393004,0.00012056,2]
[327427274,1716072632361,-987.37561737,0.00012056,2]
[327427275,1716072632370,-157.70718433,0.00012057,2]
[327427276,1716072632379,-516.02698843,0.00012057,2]
[327427277,1716072632389,-266.26956898,0.00012057,2]
[327427278,1716072632404,-155.0,0.00012057,2]
[327427279,1716072632413,-200.89902712,0.00012058,2]
[327427280,1716072632422,-155.0,0.00012058,2]
[327427281,1716072632431,-155.0,0.00012058,2]
[327427282,1716072632442,-155.0,0.00012058,2]
[327427283,1716072632451,-162.57544654,0.00012058,2]
[327427284,1716072632461,-523.26379453,0.00012058,2]
[327427285,1716072632470,-5000.0,0.00012058,2]
[327427286,1716072632479,-1380.55997718,0.00012059,2]
[327427287,1716072632488,-2185.84495628,0.00012059,2]
[327427288,1716072632497,-686.12362517,0.0001206,2]
[327427289,1716072632506,-377.96673764,0.0001206,2]
[327427290,1716072632516,-155.0,0.00012061,2]
[327427291,1716072632525,-5273.17210479,0.00012061,2]
[327427292,1716072632534,-4742.30332109,0.00012062,2]
[327427293,1716072632544,-1178.838,0.00012063,2]
[327427294,1716072632553,-344.36762572,0.00012161,2]
[327427295,1716072632563,-150.0,0.00012172,2]
[327427296,1716072632573,-158.47352896,0.00012176,2]
[327427297,1716072632583,-452.97,0.00012273,2]
[327427298,1716072632592,-2160.68,0.0001239,2]
[327427299,1716072632602,-603.37,0.0001239,2]
[327427300,1716072632614,-10935.71301561,0.000124,2]
[327427301,1716072632623,-150.99,0.000124,2]
[327427302,1716072632633,-177.5,0.00012429,2]
[327427303,1716072632643,-177.5,0.00012463,2]
[327427304,1716072632651,-177.5,0.00012497,2]
[327427305,1716072632660,-602.46167178,0.00012497,2]
[327427306,1716072632669,-635.47847303,0.00012498,2]
[327427307,1716072632679,-2400.0,0.000125,4]
[327427308,1716072632688,-177.5,0.00012531,2]
[327427309,1716072632697,-158.47352896,0.00012538,2]
[327427310,1716072632706,-177.5,0.00012565,2]
[327427311,1716072632715,-177.5,0.00012599,2]
[327427312,1716072632724,-4900.0,0.000126,4]
[327427313,1716072632733,-177.5,0.00012633,2]
[327427314,1716072632742,-177.5,0.00012667,2]
[327427315,1716072632751,-7300.0,0.000127,4]
[327427316,1716072632760,-177.5,0.00012701,2]
[327427317,1716072632769,-177.5,0.00012735,2]
[327427318,1716072632780,-177.5,0.00012769,2]
[327427319,1716072632788,-9009.9664707,0.000128,4]
[327427320,1716072632800,-790.0335293,0.000128,4]
[327427321,1716072632809,-177.5,0.00012803,2]
[327427322,1716072632819,-177.5,0.00012838,2]
[327427323,1716072632828,-252.30363368,0.00012868,2]
[327427324,1716072632837,-177.5,0.00012872,2]
[327427325,1716072632848,-16846.13893659,0.000129,2]
[327427326,1716072632857,-12300.0,0.000129,4]
[327427327,1716072632866,-158.47352896,0.000129,2]
[327427328,1716072632876,-165.10681743,0.000129,2]
[327427329,1716072632886,-2056.54409409,0.000129,2]
[327427330,1716072632895,-398.38052886,0.000129,2]
[327427331,1716072632904,-10420.75844865,0.000129,2]
[327427332,1716072632914,-194.26468821,0.000129,2]
[327427333,1716072632923,-177.5,0.00012906,2]
[327427334,1716072632933,-180.0,0.00012925,2]
[327427335,1716072632943,-177.5,0.0001294,2]
[327427336,1716072632953,-177.5,0.00012974,2]
[327427337,1716072632964,-4594.27005244,0.00012986,2]
[327427338,1716072632973,-269.43582416,0.0001299,2]
[327427339,1716072632984,-643.1326905,0.00012996,2]
[327427340,1716072632993,-799.82960036,0.00012996,2]
[327427341,1716072633002,-300.0,0.00012996,2]
[327427342,1716072633011,-764.56629757,0.00012997,2]
[327427343,1716072633020,-155.0,0.00012997,2]
[327427344,1716072633030,-1301.96489797,0.00012997,3]
[327427345,1716072633039,-202.73919162,0.00012997,3]
[327427346,1716072633049,-221.48704095,0.00012998,2]
[327427347,1716072633058,-155.0,0.00012998,2]
[327427348,1716072633067,-3943.81672808,0.00012998,2]
[327427349,1716072633087,-12334.63957921,0.00012998,2]
[327427350,1716072633098,-3346.47648801,0.00012998,2]
[327427351,1716072633107,-155.0,0.00012998,2]
[327427352,1716072633116,-217.33379748,0.00012998,2]
[327427353,1716072633125,-265.67139027,0.00012998,2]
[327427354,1716072633134,-155.0,0.00012998,2]
[327427355,1716072633144,-1000.0,0.00012998,2]
[327427356,1716072633153,-1063.06077755,0.00012998,2]
[327427357,1716072633162,-1580.07063343,0.00012998,2]
[327427358,1716072633171,-410.03425881,0.00012998,2]
[327427359,1716072633180,-188.22539335,0.00012998,2]
[327427360,1716072633190,-281.77826191,0.00012998,2]
[327427361,1716072633199,-165.11112073,0.00012998,2]
[327427362,1716072633208,-2382.39921483,0.00012998,2]
[327427363,1716072633218,-180.99989025,0.00012998,2]
[327427364,1716072633227,-172.5998299,0.00012998,2]
[327427365,1716072633236,-155.08937966,0.00012998,2]
[327427366,1716072633246,-387.93842144,0.00012998,2]
[327427367,1716072633255,-273.57519809,0.00012998,2]
[327427368,1716072633265,-155.0,0.00012998,2]
[327427369,1716072633275,-19082.37431275,0.00012998,2]
[327427370,1716072633288,-27155.69698281,0.00012998,2]
[327427371,1716072633297,-252.03630732,0.00012998,2]
[327427372,1716072633306,-16773.36788953,0.00012998,2]
[327427373,1716072633316,-155.0,0.00012998,2]
[327427374,1716072633326,-535.6337843,0.00012998,2]
[327427375,1716072633335,-296.9803704,0.00012998,2]
[327427376,1716072633344,-155.0001,0.00012998,2]
[327427377,1716072633354,-155.0,0.00012998,2]
[327427378,1716072633363,-155.0,0.00012998,2]
[327427379,1716072633372,-214.51359259,0.00012998,2]
[327427380,1716072633382,-156.4545868,0.00012998,2]
[327427381,1716072633391,-157.90429605,0.00012998,2]
[327427382,1716072633404,-155.76948322,0.00012998,2]
[327427383,1716072633413,-1633.78443565,0.00012998,2]
[327427384,1716072633424,-6581.21225371,0.00012998,2]
[327427385,1716072633435,-155.0,0.00012998,2]
[327427386,1716072633444,-324.70535522,0.00012998,2]
[327427387,1716072633453,-155.05385203,0.00012998,2]
[327427388,1716072633463,-18389.91851292,0.00012998,2]
[327427389,1716072633477,-339.76818,0.00012998,2]
[327427390,1716072633497,-574.32971375,0.00012998,2]
[327427406,1716072638260,-503.85224682,0.00012899,2]
[327427409,1716072638270,-7687.75085445,0.000129,2]
[327427412,1716072638281,-84.49409412,0.000129,2]
[327427414,1716072638290,-280.62930337,0.00012998,2]
[327427416,1716072638299,-541.59102307,0.00012999,2]
[327427418,1716072638308,-2430.85736824,0.00012999,2]
[327427419,1716072638324,-940.33955,0.00012999,2]
[327427420,1716072638335,-1637.09935816,0.00012999,2]
[327427421,1716072638357,-2498.39615519,0.00012999,2]
[327427422,1716072638366,-150.0,0.00012999,2]
[327427423,1716072638376,-183.82934882,0.00013,2]
[327427424,1716072638388,-1418.40609867,0.00013,2]
[327427427,1716072638700,-525.41710089,0.00013,2]
[327427428,1716072638711,-4422.33067648,0.00013,2]
[327427429,1716072638722,-2145.76887824,0.00013,2]
[327427430,1716072638733,-16318.24771686,0.00013,2]
[327427431,1716072638744,-4556.08170398,0.00013,2]
[327427432,1716072638756,-746.89027862,0.00013,2]
[327427433,1716072638779,-8428.85593734,0.00013,2]
[327427434,1716072638791,-7789.28784494,0.00013,2]
[327427435,1716072638802,-675.13887568,0.00013,2]
[327427436,1716072638813,-479.77795545,0.00013,2]
[327427437,1716072638835,-6706.4,0.00013,2]
[327427438,1716072638847,-451.19772089,0.00013,2]
[327427439,1716072638872,-2508675.22939873,0.00013,2]
[327427440,1716072638883,-511349.01462015,0.00013,2]
[327427441,1716072638892,-789.59661747,0.00013,2]
[327427442,1716072638901,-155.0,0.00013,2]
[327427443,1716072638910,-15867.50131934,0.00013,2]
[327427444,1716072638919,-201383.44886283,0.00013,2]
[327427445,1716072638930,-562494.1823862,0.00013,2]
[327427488,1716072640659,-303888.88741738,0.00013,2]
[327427490,1716072640669,-172.91,0.00013,2]
[327427492,1716072640679,-177.5,0.00013008,2]
[327427494,1716072640688,-177.5,0.00013042,2]
[327427496,1716072640698,-177.5,0.00013076,2]
[327427497,1716072640707,-569.58,0.00013152,2]
[327427498,1716072640715,-166.53,0.00013154,2]
[327427499,1716072640724,-159.93,0.00013572,2]
[327427501,1716072640734,-413.01,0.00013951,2]
[327427503,1716072640743,-413.01,0.00013955,2]
[327427504,1716072640753,-413.01,0.00013958,2]
[327427506,1716072640762,-413.01,0.00013962,2]
[327427509,1716072640772,-413.01,0.00013966,2]
[327427511,1716072640782,-413.01,0.00013969,2]
[327427513,1716072640793,-156.54,0.00013973,2]
[327427515,1716072640802,-413.01,0.00013973,2]
[327427517,1716072640812,-413.01,0.00013977,2]
[327427519,1716072640822,-413.01,0.0001398,2]
[327427521,1716072640831,-413.01,0.00013984,2]
[327427523,1716072640841,-413.01,0.00013988,2]
[327427525,1716072640850,-413.01,0.00013991,2]
[327427527,1716072640859,-413.01,0.00013995,2]
[327427528,1716072640868,-413.01,0.00013999,2]
[327427530,1716072640878,-413.01,0.00014002,2]
[327427532,1716072640887,-413.01,0.00014006,2]
[327427534,1716072640896,-413.01,0.0001401,2]
[327427536,1716072640905,-413.01,0.00014013,2]
[327427537,1716072640914,-413.01,0.00014017,2]
[327427538,1716072640924,-413.01,0.00014021,2]
[327427539,1716072640933,-250.0,0.0001421,2]
[327427540,1716072640942,-172.91,0.00014379,2]
[327427541,1716072640951,-3395.89,0.00014425,2]
[327427542,1716072640960,-569.58,0.00014613,2]
[327427543,1716072640970,-166.53,0.00014616,2]
[327427544,1716072640979,-172.91,0.00015759,2]
[327427545,1716072640988,-569.58,0.00016074,2]
[327427546,1716072640998,-166.53,0.00016078,2]
[327427547,1716072641008,-155.0,0.00017154,2]
[327427548,1716072641017,-3395.89,0.00017164,2]
[327427549,1716072641026,-34872.18003114,0.00017248,2]
[327427550,1716072641037,-569.58,0.00017535,2]
[327427551,1716072641046,-166.53,0.00017539,2]
[327427552,1716072641055,-17341.84,0.00019823,2]
[327427553,1716072641065,-4567.59739052,0.000199,3]
[327427554,1716072641074,-165.10681742,0.00021058,2]
[327427555,1716072641083,-2056.54409407,0.00021742,2]
[327427556,1716072641092,-7772.24494856,0.00021742,2]
[327427557,1716072641101,-166.98,0.00022166,2]
[327427558,1716072641110,-430.42,0.00022736,2]
[327427559,1716072641122,-3764.55506939,0.00023566,2]
[327427560,1716072641132,-164.74024366,0.00023781,2]
[327427561,1716072641144,-1000.0,0.000238,2]
[327427562,1716072641154,-800.0,0.00024055,2]
[327427563,1716072641163,-150.0,0.00024118,2]
[327427564,1716072641171,-2159.0,0.00024119,2]
[327427565,1716072641180,-973.0,0.00024119,2]
[327427566,1716072641190,-544.0,0.00024119,2]
[327427567,1716072641199,-1642.0,0.00024119,2]
[327427568,1716072641208,-1262.0,0.00024119,2]